fUSD/lending_fUSD_20250110
["ID","MTS","AMOUNT","RATE_DAILY","PERIOD"]
[348448146,1736532633990,-502.08,9.552e-05,2]
[348448149,1736532634001,-22.53979344,9.552e-05,2]
[348448151,1736532634012,-477.46020656,9.552e-05,2]
[348448153,1736532634022,-500.0,9.552e-05,2]
[348448155,1736532634035,-500.0,9.552e-05,2]
[348448157,1736532634045,-500.0,9.552e-05,2]
[348448159,1736532634055,-500.0,9.552e-05,2]
[348448161,1736532634065,-2175.16,9.552e-05,2]
[348448163,1736532634075,-500.0,9.552e-05,2]
[348448165,1736532634085,-500.0,9.552e-05,2]
[348448167,1736532634095,-500.0,9.552e-05,2]
[348448169,1736532634106,-2228.66,9.552e-05,2]
[348448171,1736532634117,-500.0,9.552e-05,2]
[348448173,1736532634127,-500.0,9.553e-05,2]
[348448175,1736532634137,-500.0,9.553e-05,2]
[348448177,1736532634147,-500.0,9.553e-05,2]
[348448179,1736532634157,-500.0,9.553e-05,2]
[348448181,1736532634167,-500.0,9.553e-05,2]
[348448183,1736532634177,-592.81,9.553e-05,2]
[348448185,1736532634188,-500.0,9.553e-05,2]
[348448187,1736532634200,-500.0,9.553e-05,2]
[348448189,1736532634210,-886.32,9.553e-05,2]
[348448191,1736532634220,-1731.95,9.553e-05,2]
[348448193,1736532634231,-500.0,9.553e-05,2]
[348448195,1736532634244,-958.64,9.553e-05,2]
[348448197,1736532634255,-500.0,9.555e-05,2]
[348448199,1736532634265,-812.95,9.555e-05,2]
[348448201,1736532634274,-1604.13,9.555e-05,2]
[348448203,1736532634285,-2901.27,9.555e-05,2]
[348448205,1736532634295,-500.0,9.555e-05,2]
[348448207,1736532634304,-500.0,9.555e-05,2]
[348448209,1736532634315,-500.0,9.555e-05,2]
[348448211,1736532634326,-598.37,9.557e-05,2]
[348448213,1736532634337,-486.21799668,9.557e-05,2]
[348448216,1736532634349,-13.78200332,9.557e-05,2]
[348448218,1736532634359,-632.01,9.557e-05,2]
[348448220,1736532634369,-1583.83,9.557e-05,2]
[348448222,1736532634379,-669.25,9.557e-05,2]
[348448224,1736532634390,-566.84,9.557e-05,2]
[348448226,1736532634400,-150.0,9.604e-05,2]
[348448228,1736532634410,-150.0,9.61e-05,2]
[348448230,1736532634420,-300.0,9.61e-05,2]
[348448232,1736532634430,-1322.1,9.825e-05,2]
[348448234,1736532634440,-3653.06,9.825e-05,2]
[348448236,1736532634451,-500.0,9.825e-05,2]
[348448238,1736532634461,-768.74,9.825e-05,2]
[348448240,1736532634471,-941.95,9.825e-05,2]
[348448242,1736532634481,-529.96152518,9.825e-05,2]
[348448244,1736532634493,-696.05847482,9.825e-05,2]
[348448246,1736532634503,-2091.4,9.825e-05,2]
[348448248,1736532634512,-618.26,9.825e-05,2]
[348448250,1736532634522,-500.0,9.825e-05,2]
[348448252,1736532634532,-1261.88,9.825e-05,2]
[348448254,1736532634542,-1176.53,9.825e-05,2]
[348448256,1736532634552,-539.45482148,9.826e-05,2]
[348448258,1736532634561,-500.0,9.826e-05,2]
[348448260,1736532634571,-500.0,9.826e-05,2]
[348448262,1736532634582,-500.0,9.826e-05,2]
[348448264,1736532634591,-500.0,9.826e-05,2]
[348448267,1736532634602,-500.0,9.826e-05,2]
[348448269,1736532634612,-500.0,9.826e-05,2]
[348448271,1736532634622,-500.0,9.826e-05,2]
[348448273,1736532634631,-501.34,9.826e-05,2]
[348448275,1736532634641,-500.0,9.826e-05,2]
[348448277,1736532634650,-500.0,9.826e-05,2]
[348448279,1736532634660,-500.0,9.826e-05,2]
[348448281,1736532634669,-626.43,9.826e-05,2]
[348448283,1736532634679,-500.0,9.826e-05,2]
[348448285,1736532634688,-500.0,9.826e-05,2]
[348448287,1736532634699,-500.0,9.826e-05,2]
[348448289,1736532634709,-500.0,9.826e-05,2]
[348448290,1736532634718,-500.0,9.826e-05,2]
[348448292,1736532634728,-500.0,9.826e-05,2]
[348448294,1736532634738,-528.28,9.826e-05,2]
[348448296,1736532634747,-362.36737188,9.826e-05,2]
[348448299,1736532634760,-273.63262812,9.826e-05,2]
[348448301,1736532634769,-664.56,9.826e-05,2]
[348448303,1736532634779,-1732.7,9.826e-05,2]
[348448304,1736532634789,-519.14,9.826e-05,2]
[348448306,1736532634800,-545.21,9.826e-05,2]
[348448309,1736532634810,-500.0,9.826e-05,2]
[348448311,1736532634820,-500.0,9.826e-05,2]
[348448313,1736532634829,-500.0,9.826e-05,2]
[348448315,1736532634839,-500.0,9.826e-05,2]
[348448317,1736532634848,-539.28,9.826e-05,2]
[348448319,1736532634858,-261.01012217,9.826e-05,2]
[348448321,1736532634868,-500.0,9.826e-05,2]
[348448323,1736532634877,-1770.27,9.826e-05,2]
[348448325,1736532634887,-500.0,9.826e-05,2]
[348448327,1736532634897,-501.15,9.826e-05,2]
[348448329,1736532634907,-500.0,9.826e-05,2]
[348448331,1736532634916,-500.0,9.826e-05,2]
[348448333,1736532634926,-1338.37,9.826e-05,2]
[348448335,1736532634935,-500.0,9.826e-05,2]
[348448337,1736532634947,-500.0,9.826e-05,2]
[348448339,1736532634957,-772.25,9.826e-05,2]
[348448341,1736532634967,-500.0,9.826e-05,2]
[348448343,1736532634976,-500.0,9.826e-05,2]
[348448345,1736532634987,-500.0,9.826e-05,2]
[348448347,1736532634996,-500.0,9.826e-05,2]
[348448349,1736532635006,-500.0,9.826e-05,2]
[348448351,1736532635016,-2418.96,9.826e-05,2]
[348448353,1736532635025,-500.0,9.826e-05,2]
[348448355,1736532635036,-500.0,9.826e-05,2]
[348448357,1736532635046,-500.0,9.826e-05,2]
[348448359,1736532635055,-500.0,9.826e-05,2]
[348448361,1736532635065,-2007.08,9.826e-05,2]
[348448363,1736532635074,-1689.97,9.826e-05,2]
[348448365,1736532635084,-500.0,9.826e-05,2]
[348448366,1736532635094,-506.62760637,9.826e-05,2]
[348448367,1736532635104,-500.0,9.826e-05,2]
[348448368,1736532635114,-502.08,9.826e-05,2]
[348448369,1736532635124,-500.0,9.826e-05,2]
[348448370,1736532635133,-500.0,9.826e-05,2]
[348448371,1736532635143,-500.0,9.826e-05,2]
[348448372,1736532635153,-500.0,9.826e-05,2]
[348448373,1736532635164,-2175.16,9.826e-05,2]
[348448374,1736532635175,-500.0,9.826e-05,2]
[348448375,1736532635185,-500.0,9.826e-05,2]
[348448376,1736532635199,-2228.66,9.826e-05,2]
[348448377,1736532635210,-357.81,9.827e-05,2]
[348448378,1736532635222,-500.0,9.827e-05,2]
[348448379,1736532635233,-500.0,9.827e-05,2]
[348448380,1736532635247,-500.0,9.827e-05,2]
[348448381,1736532635258,-592.81,9.827e-05,2]
[348448382,1736532635270,-500.0,9.827e-05,2]
[348448383,1736532635283,-500.0,9.827e-05,2]
[348448384,1736532635293,-886.32,9.827e-05,2]
[348448385,1736532635305,-1731.95,9.827e-05,2]
[348448386,1736532635316,-500.0,9.827e-05,2]
[348448387,1736532635327,-958.64,9.827e-05,2]
[348448388,1736532635339,-500.0,9.829e-05,2]
[348448389,1736532635350,-812.95,9.829e-05,2]
[348448390,1736532635362,-1604.13,9.829e-05,2]
[348448391,1736532635374,-2901.27,9.829e-05,2]
[348448392,1736532635386,-500.0,9.829e-05,2]
[348448393,1736532635401,-500.0,9.829e-05,2]
[348448394,1736532635412,-500.0,9.829e-05,2]
[348448395,1736532635425,-150.0,9.83e-05,2]
[348448396,1736532635436,-615.03591716,9.831e-05,2]
[348448397,1736532635450,-996.89,9.831e-05,2]
[348448398,1736532635461,-1667.47,9.831e-05,2]
[348448399,1736532635472,-598.37,9.831e-05,2]
[348448400,1736532635482,-632.01,9.831e-05,2]
[348448401,1736532635493,-1583.83,9.831e-05,2]
[348448402,1736532635503,-669.25,9.831e-05,2]
[348448403,1736532635514,-566.84,9.831e-05,2]
[348448404,1736532635524,-500.0,9.893e-05,2]
[348448405,1736532635536,-200.61212493,9.907e-05,2]
[348448406,1736532635546,-1000.0,9.946e-05,2]
[348448407,1736532635556,-18743.2119432,9.971e-05,2]
[348448408,1736532635566,-1140.46,9.999e-05,2]
[348448409,1736532635790,-1313.35,9.999e-05,2]
[348448410,1736532635801,-1787.99,9.999e-05,2]
[348448411,1736532635811,-1024.79,9.999e-05,2]
[348448412,1736532635821,-612.18,9.999e-05,2]
[348448413,1736532635832,-1732.38,9.999e-05,2]
[348448414,1736532635842,-500.0,9.999e-05,2]
[348448415,1736532635852,-500.0,9.999e-05,2]
[348448416,1736532635862,-500.0,9.999e-05,2]
[348448417,1736532635872,-1159.42,0.0001,2]
[348448418,1736532635881,-262.66,0.0001,2]
[348448419,1736532635891,-148111.25881583,0.0001,2]
[348448420,1736532635904,-65186.26483439,0.0001,2]
[348448421,1736532635916,-200.61212515,0.0001,2]
[348448422,1736532635927,-200.61212493,0.00010014,2]
[348448423,1736532635937,-500.0,0.00010072,2]
[348448424,1736532635947,-6622.84239297,0.00010073,4]
[348448425,1736532635958,-6704.48919721,0.00010073,4]
[348448426,1736532635968,-656.87,0.00010099,2]
[348448427,1736532635979,-500.0,0.00010099,2]
[348448428,1736532635989,-536.80929524,0.00010099,2]
[348448429,1736532636002,-446.99070476,0.00010099,2]
[348448430,1736532636012,-1322.1,0.00010099,2]
[348448431,1736532636023,-3653.06,0.00010099,2]
[348448432,1736532636033,-500.0,0.00010099,2]
[348448433,1736532636044,-768.74,0.00010099,2]
[348448434,1736532636055,-941.95,0.00010099,2]
[348448435,1736532636065,-1226.02,0.00010099,2]
[348448436,1736532636075,-2091.4,0.00010099,2]
[348448437,1736532636085,-618.26,0.00010099,2]
[348448438,1736532636095,-500.0,0.00010099,2]
[348448439,1736532636106,-1261.88,0.00010099,2]
[348448440,1736532636116,-1176.53,0.00010099,2]
[348448441,1736532636126,-512.35,0.000101,2]
[348448442,1736532636136,-500.0,0.000101,2]
[348448443,1736532636147,-500.0,0.000101,2]
[348448444,1736532636157,-500.0,0.000101,2]
[348448445,1736532636166,-500.0,0.000101,2]
[348448446,1736532636176,-500.0,0.000101,2]
[348448447,1736532636186,-500.0,0.000101,2]
[348448448,1736532636202,-500.0,0.000101,2]
[348448449,1736532636211,-500.0,0.000101,2]
[348448450,1736532636221,-500.0,0.000101,2]
[348448451,1736532636231,-500.0,0.000101,2]
[348448452,1736532636242,-863.29,0.000101,2]
[348448453,1736532636253,-500.0,0.000101,2]
[348448454,1736532636263,-500.0,0.000101,2]
[348448455,1736532636273,-500.0,0.000101,2]
[348448456,1736532636283,-500.0,0.000101,2]
[348448457,1736532636294,-500.0,0.000101,2]
[348448458,1736532636304,-500.0,0.000101,2]
[348448459,1736532636314,-658.71,0.000101,2]
[348448460,1736532636323,-500.0,0.000101,2]
[348448461,1736532636333,-500.0,0.000101,2]
[348448462,1736532636343,-500.0,0.000101,2]
[348448463,1736532636353,-500.0,0.000101,2]
[348448464,1736532636363,-500.0,0.000101,2]
[348448465,1736532636373,-651.09,0.000101,2]
[348448466,1736532636383,-503.69,0.000101,2]
[348448467,1736532636394,-500.0,0.000101,2]
[348448468,1736532636404,-500.0,0.000101,2]
[348448469,1736532636414,-500.0,0.000101,2]
[348448470,1736532636425,-500.0,0.000101,2]
[348448471,1736532636435,-276.90774251,0.000101,2]
[348448472,1736532636448,-500.0,0.000101,2]
[348448473,1736532636460,-514.76,0.000101,2]
[348448474,1736532636469,-500.0,0.000101,2]
[348448475,1736532636482,-500.0,0.000101,2]
[348448476,1736532636493,-500.0,0.000101,2]
[348448477,1736532636503,-619.5,0.000101,2]
[348448478,1736532636513,-515.05,0.000101,2]
[348448479,1736532636523,-500.0,0.000101,2]
[348448480,1736532636534,-500.0,0.000101,2]
[348448481,1736532636543,-500.0,0.000101,2]
[348448482,1736532636554,-500.0,0.000101,2]
[348448483,1736532636564,-515.69,0.000101,2]
[348448484,1736532636574,-500.0,0.000101,2]
[348448485,1736532636584,-500.0,0.000101,2]
[348448486,1736532636593,-500.0,0.000101,2]
[348448487,1736532636603,-500.0,0.000101,2]
[348448488,1736532636614,-500.0,0.000101,2]
[348448489,1736532636624,-500.0,0.000101,2]
[348448490,1736532636635,-1122.06,0.000101,2]
[348448491,1736532636645,-500.0,0.000101,2]
[348448492,1736532636654,-500.0,0.000101,2]
[348448493,1736532636664,-500.0,0.000101,2]
[348448494,1736532636674,-554.28979686,0.000101,2]
[348448495,1736532636684,-500.0,0.000101,2]
[348448496,1736532636694,-787.93,0.000101,2]
[348448497,1736532636708,-1322.21,0.000101,2]
[348448498,1736532636718,-500.0,0.000101,2]
[348448499,1736532636727,-500.0,0.000101,2]
[348448502,1736532636737,-500.0,0.000101,2]
[348448504,1736532636746,-500.0,0.000101,2]
[348448507,1736532636755,-500.0,0.000101,2]
[348448509,1736532636764,-1079.39,0.000101,2]
[348448511,1736532636774,-850.35,0.000101,2]
[348448513,1736532636783,-502.99,0.000101,2]
[348448515,1736532636793,-211.71,0.000101,2]
[348448517,1736532636802,-500.0,0.000101,2]
[348448519,1736532636811,-500.0,0.000101,2]
[348448521,1736532636821,-500.0,0.000101,2]
[348448523,1736532636831,-500.0,0.000101,2]
[348448524,1736532636841,-501.34,0.000101,2]
[348448526,1736532636851,-500.0,0.000101,2]
[348448528,1736532636862,-500.0,0.000101,2]
[348448531,1736532636872,-626.43,0.000101,2]
[348448533,1736532636881,-500.0,0.000101,2]
[348448534,1736532636891,-500.0,0.000101,2]
[348448537,1736532636902,-500.0,0.000101,2]
[348448539,1736532636912,-241.28,0.000101,2]
[348448541,1736532636922,-500.0,0.000101,2]
[348448543,1736532636931,-528.28,0.000101,2]
[348448545,1736532636941,-664.56,0.000101,2]
[348448547,1736532636953,-1732.7,0.000101,2]
[348448549,1736532636962,-519.14,0.000101,2]
[348448551,1736532636972,-693.133341,0.000101,2]
[348448553,1736532636982,-545.21,0.000101,2]
[348448554,1736532636991,-500.0,0.000101,2]
[348448557,1736532637001,-500.0,0.000101,2]
[348448559,1736532637011,-500.0,0.000101,2]
[348448561,1736532637022,-539.28,0.000101,2]
[348448563,1736532637031,-500.0,0.000101,2]
[348448565,1736532637041,-1770.27,0.000101,2]
[348448567,1736532637051,-814.643746,0.000101,2]
[348448569,1736532637060,-500.0,0.000101,2]
[348448571,1736532637070,-500.0,0.000101,2]
[348448573,1736532637079,-1338.37,0.000101,2]
[348448575,1736532637088,-500.0,0.000101,2]
[348448577,1736532637097,-500.0,0.000101,2]
[348448578,1736532637109,-772.25,0.000101,2]
[348448580,1736532637120,-500.0,0.000101,2]
[348448582,1736532637130,-500.0,0.000101,2]
[348448584,1736532637141,-273.25005203,0.000101,2]
[348448586,1736532637151,-500.0,0.000101,2]
[348448589,1736532637162,-500.0,0.000101,2]
[348448590,1736532637172,-500.0,0.000101,2]
[348448593,1736532637183,-2418.96,0.000101,2]
[348448594,1736532637192,-157.74,0.000101,2]
[348448596,1736532637202,-500.0,0.000101,2]
[348448598,1736532637212,-1302.11648196,0.000101,2]
[348448601,1736532637225,-704.96351804,0.000101,2]
[348448603,1736532637235,-1689.97,0.000101,2]
[348448605,1736532637249,-500.0,0.000101,2]
[348448607,1736532637259,-502.08,0.000101,2]
[348448609,1736532637269,-500.0,0.000101,2]
[348448611,1736532637279,-500.0,0.000101,2]
[348448613,1736532637290,-2175.16,0.000101,2]
[348448615,1736532637299,-500.0,0.000101,2]
[348448617,1736532637308,-2228.66,0.000101,2]
[348448619,1736532637319,-500.0,0.00010101,2]
[348448621,1736532637329,-500.0,0.00010101,2]
[348448623,1736532637340,-500.0,0.00010101,2]
[348448625,1736532637350,-500.0,0.00010101,2]
[348448627,1736532637361,-500.0,0.00010101,2]
[348448629,1736532637370,-500.0,0.00010101,2]
[348448631,1736532637380,-500.0,0.00010101,2]
[348448633,1736532637390,-500.0,0.00010101,2]
[348448635,1736532637400,-500.0,0.00010101,2]
[348448637,1736532637410,-500.0,0.00010101,2]
[348448639,1736532637420,-500.0,0.00010101,2]
[348448641,1736532637430,-500.0,0.00010101,2]
[348448643,1736532637440,-500.0,0.00010101,2]
[348448645,1736532637453,-500.0,0.00010101,2]
[348448647,1736532637464,-500.0,0.00010101,2]
[348448649,1736532637476,-500.0,0.00010101,2]
[348448651,1736532637485,-500.0,0.00010101,2]
[348448653,1736532637495,-500.0,0.00010101,2]
[348448655,1736532637505,-500.0,0.00010101,2]
[348448657,1736532637515,-500.0,0.00010101,2]
[348448659,1736532637525,-533.72,0.00010101,2]
[348448661,1736532637534,-500.0,0.00010101,2]
[348448663,1736532637546,-597.46,0.00010101,2]
[348448666,1736532637556,-500.0,0.00010101,2]
[348448669,1736532637565,-500.0,0.00010101,2]
[348448671,1736532637575,-500.0,0.00010101,2]
[348448673,1736532637586,-500.0,0.00010101,2]
[348448675,1736532637596,-500.0,0.00010101,2]
[348448677,1736532637606,-500.0,0.00010101,2]
[348448679,1736532637616,-500.0,0.00010101,2]
[348448681,1736532637627,-500.0,0.00010101,2]
[348448683,1736532637636,-505.19893879,0.00010101,2]
[348448685,1736532637646,-500.0,0.00010101,2]
[348448688,1736532637655,-566.09,0.00010101,2]
[348448691,1736532637665,-500.0,0.00010101,2]
[348448695,1736532637675,-500.0,0.00010101,2]
[348448698,1736532637684,-500.0,0.00010101,2]
[348448701,1736532637694,-500.0,0.00010101,2]
[348448703,1736532637706,-500.0,0.00010101,2]
[348448705,1736532637715,-500.0,0.00010101,2]
[348448707,1736532637725,-592.81,0.00010101,2]
[348448709,1736532637734,-500.0,0.00010101,2]
[348448711,1736532637743,-500.0,0.00010101,2]
[348448713,1736532637753,-886.32,0.00010101,2]
[348448715,1736532637763,-1731.95,0.00010101,2]
[348448717,1736532637772,-500.0,0.00010101,2]
[348448719,1736532637782,-958.64,0.00010101,2]
[348448721,1736532637792,-614.22,0.00010102,2]
[348448723,1736532637801,-500.0,0.00010103,2]
[348448725,1736532637811,-579.17,0.00010103,2]
[348448727,1736532637820,-500.0,0.00010103,2]
[348448729,1736532637829,-500.0,0.00010103,2]
[348448731,1736532637839,-500.0,0.00010103,2]
[348448732,1736532637848,-812.95,0.00010103,2]
[348448734,1736532637858,-1604.13,0.00010103,2]
[348448736,1736532637868,-2901.27,0.00010103,2]
[348448739,1736532637879,-500.0,0.00010103,2]
[348448740,1736532637888,-500.0,0.00010103,2]
[348448741,1736532637898,-500.0,0.00010103,2]
[348448742,1736532637907,-1105.58,0.00010104,2]
[348448743,1736532637917,-500.0,0.00010104,2]
[348448744,1736532637928,-829.69,0.00010104,2]
[348448745,1736532637938,-526.98,0.00010104,2]
[348448746,1736532637948,-853.59,0.00010104,2]
[348448747,1736532637960,-500.0,0.00010104,2]
[348448748,1736532637969,-1000.0,0.00010104,2]
[348448749,1736532637979,-534.89,0.00010104,2]
[348448750,1736532637989,-500.0,0.00010104,2]
[348448751,1736532637998,-1310.65,0.00010104,2]
[348448752,1736532638008,-713.44,0.00010105,2]
[348448753,1736532638018,-788.59,0.00010105,2]
[348448755,1736532638027,-1004.56,0.00010105,2]
[348448757,1736532638036,-791.55,0.00010105,2]
[348448759,1736532638046,-2258.26,0.00010105,2]
[348448761,1736532638055,-996.89,0.00010105,2]
[348448763,1736532638065,-1667.47,0.00010105,2]
[348448765,1736532638075,-598.37,0.00010105,2]
[348448767,1736532638084,-632.01,0.00010105,2]
[348448769,1736532638093,-1583.83,0.00010105,2]
[348448771,1736532638105,-669.25,0.00010105,2]
[348448773,1736532638115,-566.84,0.00010105,2]
[348448775,1736532638124,-200.61212493,0.00010121,2]
[348448777,1736532638135,-500.0,0.00010124,2]
[348448779,1736532638145,-520.83,0.00010135,2]
[348448781,1736532638154,-370.38,0.00010137,2]
[348448783,1736532638164,-614.22,0.00010199,2]
[348448785,1736532638173,-255.0,0.00010206,2]
[348448787,1736532638183,-200.61212493,0.00010228,2]
[348448789,1736532638193,-1140.46,0.00010273,2]
[348448791,1736532638205,-1313.35,0.00010273,2]
[348448793,1736532638214,-1787.99,0.00010273,2]
[348448795,1736532638224,-1024.79,0.00010273,2]
[348448797,1736532638233,-612.18,0.00010273,2]
[348448799,1736532638245,-1732.38,0.00010273,2]
[348448802,1736532638259,-500.0,0.00010273,2]
[348448805,1736532638269,-200.61212493,0.00010334,2]
[348448808,1736532638279,-1116.717,0.00010369,2]
[348448811,1736532638291,-2944.0,0.00010369,2]
[348448814,1736532638300,-656.87,0.00010373,2]
[348448817,1736532638310,-379.57940999,0.00010373,2]
[348448820,1736532638319,-983.8,0.00010373,2]
[348448823,1736532638331,-1322.1,0.00010373,2]
[348448826,1736532638341,-3653.06,0.00010373,2]
[348448829,1736532638351,-500.0,0.00010373,2]
[348448832,1736532638360,-768.74,0.00010373,2]
[348448835,1736532638370,-941.95,0.00010373,2]
[348448838,1736532638380,-1226.02,0.00010373,2]
[348448841,1736532638390,-2091.4,0.00010373,2]
[348448844,1736532638400,-618.26,0.00010373,2]
[348448847,1736532638409,-500.0,0.00010373,2]
[348448850,1736532638421,-1261.88,0.00010373,2]
[348448853,1736532638430,-1176.53,0.00010373,2]
[348448856,1736532638440,-512.35,0.00010374,2]
[348448859,1736532638451,-500.0,0.00010374,2]
[348448862,1736532638461,-500.0,0.00010374,2]
[348448865,1736532638472,-500.0,0.00010374,2]
[348448868,1736532638481,-500.0,0.00010374,2]
[348448871,1736532638492,-470.71726964,0.00010374,2]
[348448874,1736532638502,-500.0,0.00010374,2]
[348448877,1736532638511,-500.0,0.00010374,2]
[348448879,1736532638522,-500.0,0.00010374,2]
[348448881,1736532638531,-500.0,0.00010374,2]
[348448883,1736532638543,-863.29,0.00010374,2]
[348448885,1736532638553,-500.0,0.00010374,2]
[348448887,1736532638562,-500.0,0.00010374,2]
[348448889,1736532638574,-500.0,0.00010374,2]
[348448891,1736532638584,-500.0,0.00010374,2]
[348448893,1736532638594,-500.0,0.00010374,2]
[348448896,1736532638604,-500.0,0.00010374,2]
[348448898,1736532638614,-658.71,0.00010374,2]
[348448899,1736532638624,-500.0,0.00010374,2]
[348448901,1736532638634,-500.0,0.00010374,2]
[348448904,1736532638645,-500.0,0.00010374,2]
[348448906,1736532638654,-500.0,0.00010374,2]
[348448908,1736532638664,-500.0,0.00010374,2]
[348448909,1736532638674,-651.09,0.00010374,2]
[348448912,1736532638684,-503.69,0.00010374,2]
[348448914,1736532638695,-500.0,0.00010374,2]
[348448916,1736532638708,-500.0,0.00010374,2]
[348448918,1736532638719,-500.0,0.00010374,2]
[348448919,1736532638728,-500.0,0.00010374,2]
[348448921,1736532638738,-514.76,0.00010374,2]
[348448923,1736532638748,-500.0,0.00010374,2]
[348448926,1736532638759,-500.0,0.00010374,2]
[348448928,1736532638775,-500.0,0.00010374,2]
[348448929,1736532638785,-619.5,0.00010374,2]
[348448931,1736532638795,-515.05,0.00010374,2]
[348448933,1736532638805,-500.0,0.00010374,2]
[348448935,1736532638816,-500.0,0.00010374,2]
[348448937,1736532638825,-500.0,0.00010374,2]
[348448939,1736532638835,-500.0,0.00010374,2]
[348448941,1736532638844,-515.69,0.00010374,2]
[348448943,1736532638854,-500.0,0.00010374,2]
[348448945,1736532638864,-500.0,0.00010374,2]
[348448947,1736532638874,-500.0,0.00010374,2]
[348448949,1736532638883,-500.0,0.00010374,2]
[348448951,1736532638893,-570.20042752,0.00010374,2]
[348448952,1736532638903,-500.0,0.00010374,2]
[348448954,1736532638913,-1122.06,0.00010374,2]
[348448956,1736532638923,-500.0,0.00010374,2]
[348448958,1736532638933,-500.0,0.00010374,2]
[348448959,1736532638942,-500.0,0.00010374,2]
[348448961,1736532638955,-500.0,0.00010374,2]
[348448963,1736532638965,-787.93,0.00010374,2]
[348448965,1736532638975,-1322.21,0.00010374,2]
[348448967,1736532638984,-500.0,0.00010374,2]
[348448969,1736532638994,-500.0,0.00010374,2]
[348448971,1736532639003,-500.0,0.00010374,2]
[348448973,1736532639013,-500.0,0.00010374,2]
[348448975,1736532639023,-500.0,0.00010374,2]
[348448977,1736532639033,-1079.39,0.00010374,2]
[348448979,1736532639042,-850.35,0.00010374,2]
[348448981,1736532639052,-500.0,0.00010374,2]
[348448983,1736532639062,-500.0,0.00010374,2]
[348448985,1736532639072,-500.0,0.00010374,2]
[348448987,1736532639083,-500.0,0.00010374,2]
[348448989,1736532639093,-501.34,0.00010374,2]
[348448991,1736532639104,-500.0,0.00010374,2]
[348448993,1736532639113,-500.0,0.00010374,2]
[348448994,1736532639123,-626.43,0.00010374,2]
[348448996,1736532639133,-500.0,0.00010374,2]
[348448999,1736532639143,-500.0,0.00010374,2]
[348449001,1736532639153,-500.0,0.00010374,2]
[348449002,1736532639163,-500.0,0.00010374,2]
[348449004,1736532639173,-528.28,0.00010374,2]
[348449006,1736532639183,-664.56,0.00010374,2]
[348449008,1736532639192,-1732.7,0.00010374,2]
[348449010,1736532639204,-519.14,0.00010374,2]
[348449012,1736532639214,-693.133341,0.00010374,2]
[348449014,1736532639224,-545.21,0.00010374,2]
[348449016,1736532639234,-500.0,0.00010374,2]
[348449018,1736532639248,-500.0,0.00010374,2]
[348449020,1736532639257,-500.0,0.00010374,2]
[348449022,1736532639267,-539.28,0.00010374,2]
[348449024,1736532639277,-500.0,0.00010374,2]
[348449026,1736532639287,-1770.27,0.00010374,2]
[348449028,1736532639297,-814.643746,0.00010374,2]
[348449030,1736532639307,-500.0,0.00010374,2]
[348449032,1736532639318,-500.0,0.00010374,2]